bitfinex/quotes_BTCUSD_20260315
["timestamp","ask_amount","ask_price","bid_price","bid_amount"]
[1773610567274,0.03957114,71952.0,71939.0,0.0003929]
[1773610567521,0.03957114,71950.0,71939.0,0.0003929]
[1773610567735,0.03957114,71949.0,71939.0,0.0003929]
[1773610567898,0.03957114,71949.0,71932.0,0.06972958]
[1773610567899,0.03957114,71949.0,71937.0,1e-08]
[1773610569359,0.06949463,71948.0,71937.0,1e-08]
[1773610569562,0.03957114,71947.0,71932.0,0.00012001]
[1773610570747,0.06949463,71948.0,71923.0,0.07091822]
[1773610570748,0.03957114,71941.0,71923.0,0.07091822]
[1773610571045,0.05792145,71942.0,71923.0,0.07091822]
[1773610571046,0.03957114,71938.0,71923.0,0.07091822]
[1773610571399,0.06950526,71937.0,71923.0,0.07091822]
[1773610572216,0.06973906,71937.0,71923.0,0.07091822]
[1773610573465,0.06973906,71937.0,71923.0,0.0014]
[1773610573675,0.03957114,71936.0,71923.0,0.0014]
[1773610574180,0.03980494,71936.0,71923.0,0.0014]
[1773610575411,0.03980494,71936.0,71920.0,0.00022]
[1773610575736,0.03980494,71936.0,71920.0,1e-08]
[1773610575737,0.03957114,71929.0,71920.0,1e-08]
[1773610575890,0.03957114,71927.0,71920.0,1e-08]
[1773610576520,0.03939431,71927.0,71920.0,1e-08]
[1773610577736,0.06951589,71926.0,71920.0,1e-08]
[1773610578325,0.0002338,71935.0,71921.0,0.04177032]
[1773610578602,0.06949871,71944.0,71921.0,0.04177032]
[1773610579647,0.06949871,71944.0,71920.0,1e-08]
[1773610579852,0.06949871,71944.0,71922.0,0.04177032]
[1773610581494,0.06970774,71947.0,71922.0,0.04177032]
[1773610581864,0.06970774,71947.0,71924.0,0.04177032]
[1773610583106,0.06970774,71947.0,71931.0,0.04102347]
[1773610583344,0.06970774,71947.0,71933.0,0.04102347]
[1773610584003,0.06970774,71947.0,71934.0,0.06950816]
[1773610584860,0.06970774,71947.0,71934.0,0.06961494]
[1773610585509,0.06970774,71947.0,71935.0,0.04102347]
[1773610585991,0.06970774,71947.0,71936.0,0.06950622]
[1773610588197,0.06970774,71947.0,71935.0,0.06950622]
[1773610588856,0.06970774,71947.0,71934.0,0.06961494]
[1773610590192,0.06949753,71945.0,71934.0,0.00010678]
[1773610596483,0.03944461,71944.0,71934.0,0.00010678]
[1773610596832,0.06949753,71945.0,71934.0,0.00010678]
[1773610598863,0.05795244,71944.0,71924.0,0.0014]
[1773610599072,0.05795244,71940.0,71924.0,0.00035591]
[1773610599279,0.05935244,71940.0,71925.0,0.0014]
[1773610599644,0.05935244,71940.0,71924.0,0.00035591]
[1773610599850,0.05935244,71940.0,71925.0,0.0014]
[1773610600501,0.05935244,71940.0,71926.0,0.0014]
[1773610600931,0.06950332,71939.0,71924.0,0.05536038]
[1773610601158,0.06950332,71939.0,71926.0,0.0014]
[1773610602701,0.06950332,71939.0,71924.0,0.12487765]
[1773610602905,0.06950332,71939.0,71925.0,0.07091672]
[1773610604698,0.06949849,71944.0,71926.0,0.05500447]
[1773610604879,0.06969837,71945.0,71932.0,0.05500447]
[1773610605047,0.06969837,71945.0,71933.0,0.0014]
[1773610605244,0.06969837,71945.0,71934.0,0.05500447]
[1773610606031,0.06969831,71945.0,71934.0,0.05500447]
[1773610606712,0.06949661,71946.0,71934.0,0.05500447]
[1773610606984,0.06949327,71950.0,71936.0,0.04371783]
[1773610607161,0.06949173,71951.0,71936.0,0.04371783]
[1773610607369,0.06969173,71953.0,71936.0,0.04371783]
[1773610607370,0.0002,71953.0,71936.0,0.04371783]
[1773610607581,0.06969007,71953.0,71936.0,0.04371783]
[1773610607807,0.06968794,71955.0,71936.0,0.04371783]
[1773610608440,0.06948497,71958.0,71942.0,0.04179497]
[1773610608596,0.06948497,71958.0,71943.0,0.04242347]
[1773610608784,0.0002115,71959.0,71943.0,0.04242347]
[1773610609117,0.0002115,71959.0,71945.0,0.04102347]
[1773610609345,0.0002,71962.0,71945.0,0.04102347]
[1773610610088,0.0002,71953.0,71945.0,0.04102347]
[1773610610518,0.0002,71953.0,71945.0,0.04116787]
[1773610610742,0.0002,71961.0,71945.0,0.04116787]
[1773610611164,0.0002,71961.0,71947.0,0.04102347]
[1773610611595,0.0002,71962.0,71947.0,0.04102347]
[1773610611596,0.0002,71962.0,71947.0,0.04116787]
[1773610612483,0.0002,71962.0,71941.0,0.0014]
[1773610612484,0.05795244,71960.0,71941.0,0.0014]
[1773610612681,0.05795244,71960.0,71942.0,0.03846446]
[1773610613289,0.05795244,71960.0,71943.0,0.0014]
[1773610613290,0.03776815,71958.0,71943.0,0.0014]
[1773610613822,0.12743645,71960.0,71944.0,0.03846446]
[1773610614025,0.06948401,71960.0,71944.0,0.03846446]
[1773610614642,0.06948304,71961.0,71944.0,0.03846446]
[1773610615192,0.06948304,71961.0,71945.0,0.06949753]
[1773610615428,0.0002,71962.0,71946.0,0.03846446]
[1773610617196,0.0002,71962.0,71947.0,0.0694956]
[1773610617406,0.0002,71962.0,71948.0,0.03846446]
[1773610617602,0.0002,71962.0,71950.0,0.03846446]
[1773610618534,0.0002,71961.0,71950.0,0.03846446]
[1773610619567,0.0002,71961.0,71952.0,0.03846446]
[1773610620464,0.0002,71965.0,71952.0,0.03846446]
[1773610621340,0.0002,71968.0,71952.0,0.03846446]
[1773610621561,0.0002,71968.0,71954.0,0.03846446]
[1773610621755,0.0002,71968.0,71956.0,0.03846446]
[1773610622371,0.0002,71973.0,71956.0,0.03846446]
[1773610623803,0.0002,71973.0,71958.0,0.03846446]
[1773610625027,0.0002,71973.0,71960.0,0.03846446]
[1773610625612,0.0002,71973.0,71962.0,0.03846446]
[1773610626151,0.0002,71973.0,71964.0,0.03846446]
[1773610626533,0.0002,71973.0,71965.0,0.0014]
[1773610626938,0.0002,71973.0,71965.0,0.03986446]
[1773610627155,0.0002,71973.0,71966.0,0.0014]
[1773610627363,0.00026443,71973.0,71963.0,0.06948014]
[1773610627563,0.00026443,71973.0,71964.0,0.03846446]
[1773610627725,0.00026443,71973.0,71965.0,0.0014]
[1773610628121,0.00026443,71973.0,71966.0,0.07087725]
[1773610628700,0.00026443,71973.0,71967.0,0.0014]
[1773610629088,0.00026443,71973.0,71968.0,0.0014]
[1773610629599,0.00026443,71973.0,71966.0,0.06947725]
[1773610629809,0.00026443,71973.0,71969.0,0.0014]
[1773610630098,0.00026443,71973.0,71966.0,0.06947725]
[1773610630363,0.00026443,71973.0,71970.0,0.0014]
[1773610631338,5e-05,71980.0,71971.0,0.03846446]
[1773610631534,5e-05,71980.0,71971.0,0.03857134]
[1773610631948,5e-05,71980.0,71971.0,0.00010688]
[1773610632345,5e-05,71980.0,71971.0,0.0695793]
[1773610633345,0.07085183,71993.0,71972.0,0.0014]
[1773610633497,0.06972057,71988.0,71972.0,0.0014]
[1773610633697,0.03776815,71987.0,71972.0,0.0014]
[1773610634308,0.03776815,71987.0,71973.0,0.06947049]
[1773610634502,0.03776815,71985.0,71973.0,0.06947049]
[1773610635209,0.0002,71981.0,71973.0,0.06947049]
[1773610636855,0.03776815,71985.0,71973.0,0.06947049]
[1773610637054,0.06972132,71988.0,71973.0,0.06947049]
[1773610637355,0.0697208,71988.0,71973.0,0.06947049]
[1773610637561,0.0697208,71988.0,71973.0,0.07087049]
[1773610637966,0.10748895,71988.0,71973.0,0.07087049]
[1773610638166,0.0697208,71988.0,71973.0,0.07087049]
[1773610638716,0.10748895,71988.0,71973.0,0.07087049]
[1773610639429,0.10748895,71988.0,71973.0,0.07072317]
[1773610640247,0.06944792,71997.0,71973.0,0.07072317]
[1773610640449,0.05795244,71990.0,71974.0,0.03846446]
[1773610640858,0.05789376,71990.0,71974.0,0.03846446]
[1773610641051,0.05789376,71990.0,71973.0,0.07083014]
[1773610641298,0.03776815,71989.0,71973.0,0.07083014]
[1773610641501,0.0014,71988.0,71973.0,0.07083014]
[1773610641717,0.03916815,71988.0,71973.0,0.07183014]
[1773610641925,0.06945091,71994.0,71974.0,0.039457]
[1773610642074,0.05789376,71990.0,71974.0,0.039457]
[1773610642478,0.05789376,71990.0,71973.0,0.07105014]
[1773610642479,0.0002,71988.0,71973.0,0.07105014]
[1773610642813,0.02627357,71990.0,71973.0,0.07105014]
[1773610643001,0.05789376,71990.0,71974.0,0.039457]
[1773610643197,0.04140627,71989.0,71973.0,0.07105014]
[1773610643994,0.05789376,71990.0,71974.0,0.039457]
[1773610644392,0.05789376,71990.0,71973.0,0.06965014]
[1773610644592,0.0014,71989.0,71975.0,0.039457]
[1773610645236,0.0014,71989.0,71975.0,0.0014]
[1773610645418,0.0014,71989.0,71974.0,0.040857]
[1773610645753,0.04140627,71983.0,71973.0,0.00032697]
[1773610646046,0.04140627,71981.0,71967.0,0.06947532]
[1773610646251,0.04140627,71981.0,71967.0,0.00010697]
[1773610646402,0.04140627,71979.0,71967.0,0.00010697]
[1773610648318,0.0694618,71984.0,71967.0,0.03956397]
[1773610648657,0.11226807,71984.0,71968.0,0.0014]
[1773610649642,0.0708618,71984.0,71969.0,0.039457]
[1773610649931,0.0014,71984.0,71969.0,0.039457]
[1773610650737,0.07086083,71984.0,71970.0,0.06947339]
[1773610651074,0.0014,71985.0,71971.0,0.039457]
[1773610651281,0.0014,71985.0,71971.0,0.03887553]
[1773610652878,0.0014,71985.0,71972.0,0.06947146]
[1773610653676,0.0014,71985.0,71973.0,0.039457]
[1773610653830,0.0014,71985.0,71972.0,0.06947146]
[1773610655884,0.0014,71985.0,71973.0,0.039457]
[1773610656132,0.0002,71988.0,71974.0,0.0014]
[1773610656286,0.0002,71988.0,71974.0,0.040857]
[1773610657103,0.0002,71988.0,71975.0,0.06946856]
[1773610657613,0.0002,71988.0,71976.0,0.039457]
[1773610657919,0.06944782,71997.0,71976.0,0.039457]
[1773610657920,0.11053712,72007.0,71976.0,0.039457]
[1773610658069,0.06943672,72009.0,71978.0,0.039457]
[1773610658272,0.0001675,72021.0,71991.0,0.039457]
[1773610658472,0.0001675,72021.0,71996.0,0.039457]
[1773610658473,0.05789376,72020.0,71996.0,0.039457]
[1773610658705,0.05789376,72010.0,71994.0,0.039457]
[1773610658909,0.05789376,72010.0,71995.0,0.0014]
[1773610659113,0.0002443,72013.0,71997.0,0.03460688]
[1773610659307,0.05789376,72010.0,71997.0,0.03391451]
[1773610659670,0.04140627,72012.0,71987.0,0.039457]
[1773610659875,0.05789376,72010.0,71989.0,0.039457]
[1773610660081,0.05789376,72010.0,71991.0,0.039457]
[1773610661169,0.04140627,72008.0,71990.0,5e-05]
[1773610661374,0.04140627,72008.0,71992.0,0.0014]
[1773610661549,0.04140627,72008.0,71985.0,5e-05]
[1773610662139,0.04140627,72008.0,71986.0,0.0014]
[1773610662294,0.07003328,72013.0,71991.0,0.039457]
[1773610662872,0.07003328,72013.0,71990.0,0.05789376]
[1773610662873,0.07003283,72013.0,71993.0,0.039457]
[1773610663066,0.07003283,72013.0,71995.0,0.039457]
[1773610664471,0.07003283,72013.0,71995.0,0.0393097]
[1773610665345,0.07003283,72013.0,71997.0,0.039457]
[1773610665490,0.07003283,72013.0,71998.0,0.0014]
[1773610665689,0.07003283,72013.0,71998.0,1e-08]
[1773610666630,0.00060064,72013.0,71998.0,1e-08]
[1773610667161,0.06962755,72018.0,71996.0,0.05368695]
[1773610667162,0.03483639,72018.0,71996.0,0.05368695]
[1773610667428,0.0001675,72021.0,72002.0,0.00042453]
[1773610667628,0.06942034,72025.0,72003.0,0.0014]
[1773610667904,0.06942034,72025.0,72004.0,0.00042453]
[1773610668237,0.66673384,72060.0,72001.0,0.06944347]
[1773610668238,0.0014,72052.0,72001.0,0.06944347]
[1773610668447,0.0004798,72080.0,72054.0,0.00724596]
[1773610668649,0.00179011,72108.0,72060.0,0.52104384]
[1773610668650,0.0002894,72100.0,72060.0,0.52104384]
[1773610668878,0.04165454,72126.0,72060.0,0.52104384]
[1773610668879,0.08429992,72141.0,72118.0,0.09090023]
[1773610669211,0.27577229,72165.0,72118.0,0.09090023]
[1773610669212,0.04433308,72196.0,72123.0,0.1464]
[1773610669418,0.04433308,72196.0,72187.0,0.01319119]
[1773610669565,1.04195627,72200.0,72191.0,0.03]
[1773610669566,1.06480207,72200.0,72191.0,0.03]
[1773610669771,0.00035766,72190.0,72176.0,0.0014]
[1773610669952,0.00035766,72190.0,72177.0,0.0014]
[1773610670146,0.00035766,72190.0,72178.0,0.0014]
[1773610670346,0.06925303,72199.0,72179.0,0.0014]
[1773610670551,0.04140627,72197.0,72180.0,0.0014]
[1773610670749,1.11429879,72200.0,72180.0,0.00125276]
[1773610670750,0.78916468,72200.0,72180.0,0.00125276]
[1773610671333,0.78916468,72200.0,72179.0,0.00035766]
[1773610671334,0.7207495,72200.0,72179.0,0.00035766]
[1773610671469,0.06925303,72199.0,72180.0,0.0014]
[1773610671690,0.04140627,72198.0,72179.0,0.00035766]
[1773610671948,0.04140627,72198.0,72180.0,0.0014]
[1773610672063,0.06925303,72199.0,72180.0,0.0014]
[1773610672266,0.07009053,72199.0,72180.0,0.0014]
[1773610672896,0.07009053,72199.0,72181.0,0.0014]
[1773610673096,0.05047115,72198.0,72182.0,0.0014]
[1773610673312,0.05047115,72196.0,72183.0,0.0014]
[1773610673921,0.06925495,72197.0,72183.0,0.0014]
[1773610674189,0.07009245,72197.0,72183.0,0.0014]
[1773610674678,0.05047115,72196.0,72184.0,0.0014]
[1773610674879,0.05082881,72196.0,72181.0,0.0014]
[1773610675083,0.05082881,72196.0,72162.0,0.06928662]
[1773610675404,0.05047115,72194.0,72160.0,5e-05]
[1773610675603,0.06925687,72195.0,72160.0,5e-05]
[1773610675604,0.05047115,72189.0,72160.0,5e-05]
[1773610675808,0.05047115,72187.0,72160.0,5e-05]
[1773610676027,0.17261615,72180.0,72150.0,5e-05]
[1773610676227,0.05047115,72178.0,72150.0,5e-05]
[1773610676432,0.05047115,72178.0,72140.0,0.06935914]
[1773610676433,0.05047115,72169.0,72140.0,5e-05]
[1773610676629,0.05047115,72167.0,72145.0,0.0014]
[1773610676966,0.05047115,72167.0,72143.0,0.0014]
[1773610677179,0.0014,72168.0,72130.0,0.06936873]
[1773610677180,0.05047115,72159.0,72130.0,5e-05]
[1773610677394,0.055282,72148.0,72119.0,0.0014]
[1773610677581,0.05187115,72147.0,72119.0,0.0014]
[1773610677963,0.05047115,72139.0,72112.0,5e-05]
[1773610678127,0.05047115,72137.0,72107.0,0.06934053]
[1773610678326,0.05047115,72137.0,72111.0,0.0014]
[1773610678977,0.05047115,72137.0,72106.0,0.0014]
[1773610679188,0.05047115,72137.0,72105.0,0.00145]
[1773610679549,0.05047115,72135.0,72105.0,0.0014]
[1773610680152,0.05047115,72135.0,72103.0,0.0014]
[1773610680654,0.05047115,72135.0,72100.0,5e-05]
[1773610680894,0.06931351,72136.0,72100.0,5e-05]
[1773610680895,0.05047115,72129.0,72100.0,5e-05]
[1773610681065,0.17261615,72130.0,72097.0,0.0014]
[1773610681066,0.05047115,72127.0,72097.0,0.0014]
[1773610681270,0.06931351,72136.0,72097.0,0.07075022]
[1773610681468,0.05047115,72135.0,72099.0,0.06934908]
[1773610681903,0.06930524,72145.0,72101.0,0.05261037]
[1773610682079,0.06930524,72145.0,72100.0,0.17401615]
[1773610682080,0.06930524,72145.0,72111.0,0.05261037]
[1773610682485,0.06954937,72148.0,72114.0,0.03234816]
[1773610682688,0.06954937,72148.0,72118.0,0.03234816]
[1773610683813,0.06954937,72148.0,72118.0,0.06933081]
[1773610684016,0.06954937,72148.0,72118.0,0.07033081]
[1773610684412,0.06954937,72148.0,72118.0,0.06933081]
[1773610684613,0.05047115,72146.0,72119.0,0.0014]
[1773610684838,0.05187115,72145.0,72119.0,0.0014]
[1773610685186,0.05047115,72145.0,72119.0,0.0014]
[1773610685531,0.05047115,72139.0,72098.0,0.0014]
[1773610685736,0.05047115,72137.0,72099.0,0.06934908]
[1773610685879,0.0014,72136.0,72099.0,0.06934908]
[1773610686077,0.05187115,72136.0,72099.0,0.06934908]
[1773610686313,0.05187115,72136.0,72100.0,0.0014]
[1773610686517,0.05187115,72136.0,72094.0,0.05261037]
[1773610686518,0.05047115,72129.0,72085.0,5e-05]
[1773610686678,0.05047115,72129.0,72092.0,0.0014]
[1773610686878,0.05047115,72118.0,72099.0,0.001]
[1773610687082,0.0014,72117.0,72099.0,0.001]
[1773610687324,0.05187115,72117.0,72099.0,0.001]
[1773610687540,0.05187115,72117.0,72094.0,0.06935389]
[1773610687746,0.05047115,72134.0,72094.0,0.06935389]
[1773610687889,0.05047115,72132.0,72094.0,0.06935389]
[1773610688080,0.05047115,72130.0,72094.0,0.06935389]
[1773610688284,0.05047115,72130.0,72095.0,0.0014]
[1773610688925,0.00035715,72132.0,72096.0,0.05261037]
[1773610689128,0.00175715,72132.0,72096.0,0.05261037]
[1773610689328,0.00175715,72132.0,72097.0,0.337529]
[1773610689531,0.00175715,72132.0,72103.0,0.418544]
[1773610689532,0.00035715,72132.0,72103.0,0.418544]
[1773610689736,0.00035715,72132.0,72105.0,0.511264]
[1773610690016,0.00035715,72132.0,72104.0,0.12335465]
[1773610690017,0.06967513,72132.0,72104.0,0.12335465]
[1773610690448,0.00035715,72132.0,72104.0,0.07074428]
[1773610690653,0.00035715,72132.0,72105.0,0.05261037]
[1773610690853,0.00035715,72132.0,72105.0,0.05361037]
[1773610691597,0.00035715,72132.0,72107.0,0.05261037]
[1773610691748,0.06930722,72143.0,72109.0,0.06933947]
[1773610691949,0.06930722,72143.0,72111.0,0.19841037]
[1773610692148,0.06930722,72143.0,72111.0,0.05261037]
[1773610692430,0.06930527,72145.0,72112.0,0.0014]
[1773610692632,0.0693032,72147.0,72113.0,0.05261037]
[1773610692977,5e-05,72149.0,72121.0,0.02850034]
[1773610693174,5e-05,72149.0,72123.0,0.05261037]
[1773610693366,5e-05,72149.0,72125.0,0.05261037]
[1773610693562,5e-05,72149.0,72127.0,0.05261037]
[1773610693768,5e-05,72149.0,72129.0,0.06932024]
[1773610694268,5e-05,72149.0,72130.0,0.13410493]
[1773610694471,0.06268964,72148.0,72129.0,0.06932024]
[1773610694719,0.06268964,72147.0,72130.0,0.0014]
[1773610695472,0.06268964,72147.0,72129.0,0.07072024]
[1773610695695,0.06930391,72146.0,72121.0,0.06932716]
[1773610695969,0.06342065,72145.0,72122.0,0.13446656]
[1773610696211,0.06342065,72145.0,72123.0,0.13586656]
[1773610696370,0.06342065,72145.0,72124.0,0.13446656]
[1773610696585,0.06342065,72145.0,72125.0,0.13446656]
[1773610696787,0.06342065,72145.0,72124.0,0.0014]
[1773610697326,0.06342065,72145.0,72121.0,0.06932716]
[1773610697327,0.06342065,72145.0,72123.0,0.10799831]
[1773610697533,0.06342065,72145.0,72122.0,0.10799831]
[1773610697895,0.06318979,72143.0,72121.0,0.06932793]
[1773610698140,0.06318979,72141.0,72127.0,0.10799831]
[1773610698342,0.06318979,72141.0,72120.0,0.0014]
[1773610698542,0.06318979,72141.0,72119.0,0.22826226]
[1773610698543,0.06318979,72141.0,72119.0,0.0014]
[1773610698742,0.06318979,72141.0,72118.0,0.06932989]
[1773610698743,0.06318979,72141.0,72116.0,0.06933244]
[1773610699605,0.06318979,72141.0,72114.0,0.06933274]
[1773610699967,0.33264155,72150.0,72118.0,0.15893249]
[1773610700174,0.0001,72169.0,72143.0,0.15893249]
[1773610700482,0.0001,72169.0,72152.0,0.19413127]
[1773610700665,0.0001,72169.0,72153.0,0.01412359]
[1773610700986,0.0001,72169.0,72153.0,0.0014]
[1773610701189,0.0001,72169.0,72153.0,0.16033249]
[1773610701348,0.0001,72169.0,72154.0,0.01271307]
[1773610701542,0.0001,72169.0,72155.0,0.01271272]
[1773610701742,0.0001,72169.0,72160.0,0.06929046]
[1773610701941,0.0001,72169.0,72161.0,0.01271034]
[1773610702146,0.0014,72177.0,72161.0,0.15893249]
[1773610702401,0.3,72175.0,72162.0,0.01271205]
[1773610702658,0.3,72175.0,72160.0,0.07069046]
[1773610702659,0.06945341,72199.0,72173.0,0.19860877]
[1773610702824,0.07056869,72198.0,72174.0,0.0014]
[1773610702996,0.07056869,72198.0,72173.0,0.16255572]
[1773610703196,0.07056869,72198.0,72171.0,0.16255572]
[1773610703401,0.33260128,72196.0,72168.0,0.0014]
[1773610703598,0.07056869,72195.0,72168.0,0.0014]
[1773610703817,0.06925975,72192.0,72169.0,0.06928182]
[1773610704018,0.07056869,72191.0,72169.0,0.06928182]
[1773610704200,0.07056869,72188.0,72169.0,0.06928182]
[1773610704801,0.07056869,72190.0,72168.0,0.06928182]
[1773610705023,0.07056869,72189.0,72156.0,0.0706943]
[1773610705225,0.17269495,72190.0,72157.0,0.01272004]
[1773610705431,0.17269495,72190.0,72156.0,0.0692943]
[1773610705432,0.07056869,72189.0,72156.0,0.0692943]
[1773610705607,0.07056869,72189.0,72153.0,0.00010697]
[1773610705944,0.0014,72191.0,72153.0,0.00010697]
[1773610705945,0.06741416,72173.0,72153.0,0.00010697]
[1773610706154,0.06741416,72171.0,72153.0,0.00010697]
[1773610706716,0.33218571,72169.0,72153.0,0.00010697]
[1773610707069,0.06741416,72171.0,72153.0,0.00010697]
[1773610707280,0.33218571,72170.0,72153.0,0.00010697]
[1773610707448,0.06741416,72171.0,72153.0,0.00010697]
[1773610707825,0.06928374,72167.0,72153.0,0.00010697]
[1773610708256,0.1366979,72167.0,72153.0,0.00010697]
[1773610708628,0.14636,72195.0,72190.0,5.66225155]
[1773610708832,0.06741416,72193.0,72190.0,0.5755702]
[1773610709030,0.06741416,72193.0,72190.0,0.51726382]
[1773610709264,0.06741416,72193.0,72190.0,0.44801446]
[1773610709495,0.24668139,72190.0,72152.0,0.00066044]
[1773610709699,0.04482981,72189.0,72153.0,0.13576967]
[1773610709832,0.20185158,72190.0,72154.0,0.13576967]
[1773610710033,0.06926263,72189.0,72156.0,0.0692943]
[1773610710378,0.06926263,72189.0,72157.0,0.13576967]
[1773610710570,0.06926263,72189.0,72158.0,0.13576967]
[1773610710881,0.0014,72188.0,72159.0,0.13576967]
[1773610711031,0.0014,72188.0,72160.0,0.13576967]
[1773610711250,0.0014,72188.0,72161.0,0.13576967]
[1773610711595,0.0014,72187.0,72162.0,0.13576967]
[1773610711748,0.0014,72187.0,72163.0,0.13576967]
[1773610711949,0.0014,72187.0,72164.0,0.13576967]
[1773610712189,0.0692655,72186.0,72165.0,0.13576967]
[1773610712523,0.0692655,72186.0,72166.0,0.13576967]
[1773610712711,0.06655051,72179.0,72152.0,0.00010697]
[1773610712899,0.0014,72178.0,72152.0,0.00010697]
[1773610713514,0.0014,72177.0,72152.0,0.00010697]
[1773610714083,0.17269495,72170.0,72152.0,0.00010697]
[1773610714324,0.17269495,72170.0,72140.0,0.06935936]
[1773610714523,0.0014,72169.0,72140.0,0.06946635]
[1773610715071,0.17269495,72160.0,72140.0,0.00015699]
[1773610715235,0.0692751,72176.0,72140.0,0.00015699]
[1773610715236,0.0014,72159.0,72140.0,0.00010699]
[1773610715437,0.17269495,72170.0,72140.0,0.00010699]
[1773610715438,0.0014,72158.0,72140.0,0.00010699]
[1773610715676,0.0014,72157.0,72140.0,0.00010699]
[1773610715957,0.0014,72156.0,72140.0,0.00010699]
[1773610716176,0.17269495,72160.0,72140.0,0.00010699]
[1773610716177,0.06929142,72159.0,72140.0,0.00010699]
[1773610716508,0.06929142,72159.0,72135.0,5e-05]
[1773610716702,0.0014,72158.0,72135.0,0.00015701]
[1773610717343,0.06929142,72159.0,72135.0,0.00010701]
[1773610717545,0.06929142,72159.0,72130.0,5e-05]
[1773610717749,0.00144,72158.0,72130.0,0.0694789]
[1773610717952,0.06929142,72159.0,72130.0,0.0694789]
[1773610718131,0.00144,72158.0,72130.0,0.0694789]
[1773610718323,0.07073334,72157.0,72130.0,0.0694289]
[1773610718788,0.00144,72156.0,72130.0,0.0694289]
[1773610718997,0.06929334,72157.0,72130.0,0.0694289]
[1773610719200,0.00144,72155.0,72130.0,0.00011]
[1773610719709,0.06929334,72157.0,72130.0,0.00011]
[1773610719710,0.00144,72154.0,72130.0,0.00011]
[1773610719918,0.00144,72153.0,72130.0,0.00011]
[1773610720363,0.00144,72152.0,72130.0,0.00011]
[1773610720576,0.00144,72151.0,72130.0,0.00011]
[1773610721404,0.00144,72150.0,72130.0,0.00011]
[1773610721735,0.06929334,72157.0,72130.0,0.00011]
[1773610721959,0.00144,72156.0,72130.0,0.00011]
[1773610722356,0.06929526,72155.0,72130.0,0.12204293]
[1773610722857,0.00144,72154.0,72130.0,0.12204293]
[1773610723244,0.00144,72153.0,72130.0,0.00011]
[1773610723781,0.00144,72152.0,72130.0,0.00011]
[1773610724586,0.06929334,72157.0,72131.0,0.1362891]
[1773610724790,0.00144,72156.0,72132.0,0.1362891]
[1773610725014,0.00144,72156.0,72133.0,0.1362891]
[1773610725252,0.00144,72155.0,72134.0,0.1362891]
[1773610725454,0.00144,72154.0,72130.0,0.00011]
[1773610725750,0.00144,72154.0,72131.0,0.13626416]
[1773610725951,0.00144,72154.0,72130.0,0.00011]
[1773610725952,0.06929334,72157.0,72132.0,0.13626416]
[1773610726198,0.06929334,72157.0,72133.0,0.13126416]
[1773610726391,0.06929334,72157.0,72130.0,0.00011]
[1773610726392,0.00144,72156.0,72130.0,0.00011]
[1773610726608,0.06929334,72158.0,72130.0,0.00011]
[1773610726609,0.00144,72155.0,72130.0,0.06942928]
[1773610726812,0.00144,72154.0,72130.0,0.06942928]
[1773610727014,0.06929334,72158.0,72130.0,0.19137381]
[1773610727305,0.00144,72153.0,72130.0,0.19137381]
[1773610727447,0.06929334,72158.0,72130.0,0.19137381]
[1773610727642,0.07073046,72160.0,72131.0,0.12194453]
[1773610727841,0.00144,72158.0,72131.0,0.12194453]
[1773610728279,0.07069526,72159.0,72131.0,0.12194453]
[1773610729072,0.07069526,72159.0,72133.0,0.12194283]
[1773610730864,0.07069526,72159.0,72135.0,0.12195066]
[1773610731063,0.07069526,72159.0,72137.0,0.12195066]
[1773610731860,0.07119426,72159.0,72137.0,0.12195066]
[1773610732853,0.0023697,72158.0,72136.0,0.0014]
[1773610733552,0.07119426,72159.0,72136.0,0.0014]
[1773610733750,0.06979426,72159.0,72136.0,0.0014]
[1773610734172,0.0014,72158.0,72136.0,0.0014]
[1773610734489,0.06979426,72159.0,72136.0,0.0014]
[1773610735082,0.06929334,72157.0,72137.0,0.11524211]
[1773610735450,0.06929334,72157.0,72136.0,0.07071338]
[1773610735652,0.06929334,72157.0,72137.0,0.11524211]
[1773610735882,0.0014,72156.0,72137.0,0.11524211]
[1773610736694,0.06979234,72157.0,72137.0,0.11524211]
[1773610736899,0.0014,72156.0,72137.0,0.11524211]
[1773610737062,0.0014,72155.0,72137.0,0.11524211]
[1773610737465,0.06979234,72157.0,72137.0,0.11524211]
[1773610737671,0.07119234,72157.0,72137.0,0.11524211]
[1773610738091,0.07119234,72157.0,72138.0,0.13652205]
[1773610738421,0.07119234,72157.0,72137.0,0.11546211]
[1773610738635,0.06979234,72157.0,72139.0,0.11524211]
[1773610738791,0.07119234,72157.0,72139.0,0.11524211]
[1773610739192,0.07119234,72157.0,72140.0,0.13660225]
[1773610739391,0.0014,72156.0,72141.0,0.11524211]
[1773610739627,0.0014,72156.0,72143.0,0.11524211]
[1773610739927,0.000499,72156.0,72143.0,0.11524211]
[1773610740079,0.000499,72156.0,72142.0,0.0014]
[1773610740484,0.0014,72155.0,72137.0,0.00022]
[1773610740719,0.0014,72155.0,72138.0,0.13666887]
[1773610740928,0.001899,72155.0,72137.0,0.00022]
[1773610741341,0.06929622,72154.0,72138.0,0.13672988]
[1773610741507,0.06929622,72154.0,72140.0,0.11631935]
[1773610741707,0.06929046,72160.0,72142.0,0.11091842]
[1773610741911,0.06929046,72160.0,72144.0,0.11091842]
[1773610742196,0.06948995,72161.0,72146.0,0.11091842]
[1773610742398,0.06925714,72173.0,72143.0,0.0014]
[1773610742399,0.06928468,72168.0,72148.0,0.11091842]
[1773610742593,0.06928084,72171.0,72151.0,0.12338215]
[1773610742847,0.06928084,72171.0,72153.0,0.11091842]
[1773610743004,0.06928084,72171.0,72155.0,0.11091842]
[1773610743224,0.0692799,72174.0,72158.0,0.06929238]
[1773610743430,0.0692799,72174.0,72159.0,0.13812988]
[1773610743629,0.0014,72175.0,72161.0,0.11091842]
[1773610743852,0.06927414,72177.0,72162.0,0.13672988]
[1773610744051,0.07078135,72177.0,72163.0,0.2476483]
[1773610744254,0.07078135,72177.0,72164.0,0.13672988]
[1773610744457,0.07078135,72177.0,72163.0,0.11091842]
[1773610744458,0.07078135,72177.0,72165.0,0.13672988]
[1773610744687,0.06938135,72177.0,72166.0,0.13672988]
[1773610744975,0.07078135,72177.0,72167.0,0.13672988]
[1773610745176,0.06938135,72177.0,72168.0,0.13662398]
[1773610745378,0.00010721,72177.0,72166.0,0.11091842]
[1773610745610,0.00010721,72177.0,72167.0,0.13655003]
[1773610745814,0.00010721,72177.0,72168.0,0.13655003]
[1773610745948,0.00010721,72177.0,72169.0,0.13655003]
[1773610746149,0.00010721,72177.0,72166.0,0.11231842]
[1773610746353,0.00010721,72177.0,72167.0,0.13645813]
[1773610746579,0.00010721,72177.0,72168.0,0.13645813]
[1773610746784,0.00010721,72177.0,72166.0,0.11231842]